bitfinex/quotes_ETHUSD_20250802
["timestamp","ask_amount","ask_price","bid_price","bid_amount"]
[1754127335114,4.494,3491.8,3491.4,0.4824]
[1754127335323,4.494,3491.9,3491.5,0.6308]
[1754127335648,4.494,3491.9,3491.6,0.1432]
[1754127336123,4.494,3491.9,3491.3,8.0338087]
[1754127336314,0.1432,3491.7,3491.3,8.0338087]
[1754127337561,0.6349,3491.7,3491.3,8.0338087]
[1754127337762,0.1432,3491.5,3491.3,8.0338087]
[1754127338490,4.493,3491.7,3491.4,0.4824]
[1754127338689,0.1432,3492.0,3491.4,0.4824]
[1754127338895,0.1432,3492.0,3491.9,8.0338087]
[1754127338896,4.495,3492.0,3491.9,8.0338087]
[1754127339487,3.0,3492.8,3491.9,8.0338087]
[1754127339488,4.496,3492.2,3491.9,8.0338087]
[1754127339703,4.6392,3492.2,3491.9,8.0338087]
[1754127339859,5.1309,3492.2,3491.9,8.0338087]
[1754127340072,0.9477,3492.1,3491.4,8.0338087]
[1754127340277,0.1432,3491.7,3491.4,8.0338087]
[1754127343374,0.4917,3492.1,3491.4,8.0338087]
[1754127343559,4.493,3491.8,3491.5,0.1432]
[1754127343903,4.9847,3491.8,3491.5,0.1432]
[1754127344625,4.493,3491.8,3491.4,8.0338087]
[1754127344777,1.0909,3491.7,3491.4,8.0338087]
[1754127345592,0.4917,3491.6,3491.2,0.1452]
[1754127345790,0.9477,3491.6,3491.2,0.002]
[1754127346123,0.1432,3491.3,3491.2,0.002]
[1754127346476,0.6349,3491.3,3491.2,0.002]
[1754127346708,1.0909,3491.3,3491.2,0.002]
[1754127348181,5.5819,3491.3,3491.2,0.002]
[1754127349104,7.3019,3491.3,3491.2,0.002]
[1754127350385,4.9787,3491.5,3491.2,0.002]
[1754127350587,0.1432,3491.4,3491.2,0.002]
[1754127350904,0.6349,3491.4,3491.2,0.002]
[1754127351108,0.4917,3491.3,3491.2,0.002]
[1754127351318,3.96929481,3491.3,3491.2,0.002]
[1754127351479,6.96929481,3491.3,3491.2,0.002]
[1754127351685,2.27,3491.0,3490.9,0.1432]
[1754127351926,6.9252,3491.0,3490.0,0.1432]
[1754127352125,0.1432,3490.7,3490.3,8.0338087]
[1754127352373,0.1432,3490.7,3490.3,8.87417482]
[1754127352680,4.511,3490.6,3490.3,8.87417482]
[1754127352886,5.0098,3490.7,3490.3,8.1770087]
[1754127353480,0.1432,3490.4,3489.9,0.1432]
[1754127353663,4.513,3490.3,3489.9,0.1432]
[1754127353977,0.1432,3490.4,3489.9,0.96090087]
[1754127354138,0.1432,3490.6,3490.3,8.0338087]
[1754127354345,4.515,3490.5,3490.3,8.0338087]
[1754127354577,4.515,3490.7,3490.4,0.6328]
[1754127354723,4.515,3490.7,3490.4,0.2916]
[1754127354929,4.515,3490.7,3490.6,0.1432]
[1754127355286,4.515,3490.7,3490.3,8.91478957]
[1754127355287,4.515,3490.7,3490.3,8.0338087]
[1754127355425,4.515,3490.7,3490.4,0.1432]
[1754127355649,0.1432,3490.9,3490.4,0.1432]
[1754127355879,4.516,3490.8,3490.5,0.3412]
[1754127356091,0.1432,3491.1,3490.7,8.0338087]
[1754127356392,0.9618,3491.0,3490.7,8.0338087]
[1754127356548,0.9618,3490.9,3490.7,8.0338087]
[1754127356749,0.4988,3490.9,3490.7,8.0338087]
[1754127357789,0.9618,3490.8,3490.6,0.1432]
[1754127357973,0.9618,3490.8,3490.4,0.1432]
[1754127358180,0.9618,3490.7,3490.4,0.1432]
[1754127358493,0.4988,3490.6,3490.4,0.1432]
[1754127358696,0.1432,3490.9,3490.4,0.1432]
[1754127358993,0.4988,3490.8,3490.4,0.1432]
[1754127359175,0.1432,3490.9,3490.4,0.1432]
[1754127359371,0.9618,3490.7,3490.4,0.1432]
[1754127359693,0.1432,3490.9,3490.4,0.1432]
[1754127359888,0.642,3490.9,3490.4,0.1432]
[1754127360387,0.1432,3490.7,3490.3,8.0338087]
[1754127361486,0.4988,3490.6,3490.3,8.0338087]
[1754127361683,0.9618,3490.6,3490.3,8.0338087]
[1754127361988,0.463,3490.6,3490.3,8.0338087]
[1754127362187,0.4988,3490.5,3490.3,8.0338087]
[1754127362592,0.463,3490.6,3490.3,8.0338087]
[1754127362776,0.9618,3490.6,3490.3,8.0338087]
[1754127362977,0.463,3490.6,3490.3,8.0338087]
[1754127363168,0.9618,3490.5,3490.3,8.0338087]
[1754127363364,0.9618,3490.4,3490.3,8.0338087]
[1754127364860,0.9618,3490.4,3490.1,0.1432]
[1754127364861,0.4988,3490.4,3490.1,0.1432]
[1754127365062,0.55,3490.0,3488.5,0.4586]
[1754127365303,1.72,3489.7,3489.0,8.0338087]
[1754127365595,1.1700325,3490.5,3489.5,8.0338087]
[1754127365596,3.463,3490.5,3489.5,8.0338087]
[1754127365757,4.528,3490.4,3489.6,0.80338087]
[1754127365952,4.528,3490.4,3489.6,0.4586]
[1754127366268,0.55,3490.1,3489.0,8.4924087]
[1754127366469,0.9618,3490.3,3489.5,8.0338087]
[1754127366675,0.4988,3490.9,3490.0,8.0338087]
[1754127366876,6.887,3491.9,3489.1,3.0]
[1754127366877,0.68104814,3491.6,3490.8,8.0338087]
[1754127367058,4.534,3491.4,3490.8,8.0338087]
[1754127367270,4.534,3491.4,3490.8,8.4924087]
[1754127367455,1.72,3491.2,3490.3,8.0338087]
[1754127367654,0.4988,3491.1,3490.3,8.0338087]
[1754127368282,6.887,3491.9,3490.4,0.9143]
[1754127368283,4.535,3491.0,3490.4,0.9143]
[1754127368594,1.72,3491.0,3490.3,8.0338087]
[1754127368795,1.72,3490.8,3489.8,11.0338087]
[1754127369093,6.7548,3490.7,3489.8,11.0338087]
[1754127369450,6.7548,3490.7,3489.8,8.0338087]
[1754127369697,1.72,3490.5,3489.8,8.0338087]
[1754127370183,2.44178,3490.5,3489.8,8.0338087]
[1754127371100,0.4988,3491.3,3490.3,8.0338087]
[1754127371390,30.0,3491.1,3490.4,0.9143]
[1754127371596,5.0358,3491.2,3490.4,0.9143]
[1754127371805,4.537,3491.2,3490.4,0.9143]
[1754127372168,1.72,3491.0,3490.0,0.4586]
[1754127372374,4.537,3491.2,3490.3,8.0338087]
[1754127372572,4.537,3491.2,3490.4,0.9143]
[1754127373178,6.257,3491.2,3490.4,0.9143]
[1754127373408,0.4988,3491.1,3490.4,0.4586]
[1754127373702,0.4988,3491.1,3490.3,8.0338087]
[1754127373912,0.4988,3491.1,3490.3,8.92861957]
[1754127374069,0.4988,3491.1,3490.3,9.38721957]
[1754127375066,0.001,3491.2,3490.8,8.1770087]
[1754127375292,0.001,3491.2,3491.0,0.1432]
[1754127375505,0.001,3491.2,3491.0,0.73492726]
[1754127375710,0.001,3491.2,3491.0,0.6018]
[1754127375936,0.001,3491.2,3491.0,0.1432]
[1754127376201,0.4988,3491.1,3490.7,0.1432]
[1754127376707,2.6818,3491.0,3489.6,8.4924087]
[1754127376911,0.1432,3490.6,3490.1,0.1432]
[1754127377286,0.4988,3490.5,3490.1,0.1432]
[1754127377580,0.1432,3490.6,3490.2,8.9481087]
[1754127377784,4.6852,3490.9,3490.4,0.1432]
[1754127378011,4.6852,3490.9,3490.5,0.4586]
[1754127378214,4.542,3491.0,3490.7,8.0338087]
[1754127378373,4.542,3491.0,3490.7,8.1770087]
[1754127378572,4.542,3491.0,3490.7,8.6356087]
[1754127379213,0.001,3491.2,3490.9,0.1432]
[1754127379374,0.001,3491.2,3491.1,0.1432]
[1754127380009,0.001,3491.2,3491.1,1.0575]
[1754127381370,0.001,3491.2,3491.1,0.1432]
[1754127382018,0.001,3491.2,3491.1,1.0769]
[1754127382373,0.001,3491.6,3491.1,1.0769]
[1754127382573,4.6832,3492.6,3491.5,8.1770087]
[1754127382820,4.54,3492.6,3492.3,8.0338087]
[1754127383021,4.54,3492.6,3492.0,0.1432]
[1754127383022,0.9394,3492.5,3492.0,0.1432]
[1754127383184,0.1432,3492.1,3491.4,0.1432]
[1754127383388,0.4693,3492.3,3491.2,5.4737]
[1754127383735,0.1432,3492.1,3491.6,0.1432]
[1754127384222,0.9394,3492.0,3491.6,0.1432]
[1754127384425,1.72,3492.4,3491.4,0.1432]
[1754127384642,0.9394,3491.9,3490.7,4.542]
[1754127384776,0.9394,3491.9,3491.2,0.1432]
[1754127384777,0.1432,3491.7,3491.2,0.1432]
[1754127384972,0.9394,3491.6,3491.2,0.1432]
[1754127385214,0.4693,3491.5,3491.2,0.1432]
[1754127386029,4.542,3491.9,3490.6,0.4986]
[1754127386030,0.9394,3491.4,3490.6,0.4986]
[1754127386233,30.0,3491.8,3490.6,1.84945087]
[1754127386524,30.0,3491.8,3491.4,8.0338087]
[1754127386525,0.4693,3491.8,3491.4,8.0338087]
[1754127386725,1.72,3492.0,3491.4,8.0338087]
[1754127386726,4.541,3492.0,3491.5,0.4986]
[1754127386928,0.4693,3491.9,3491.2,8.0338087]
[1754127387129,0.9394,3491.9,3491.0,0.4986]
[1754127387288,4.541,3492.0,3491.4,8.0338087]
[1754127387486,4.541,3492.0,3491.4,8.5324087]
[1754127387682,4.543,3492.1,3491.4,8.5324087]
[1754127389425,0.4693,3492.0,3491.4,8.0338087]
[1754127389734,0.9394,3492.0,3491.4,8.0338087]
[1754127389894,1.58478,3492.0,3491.4,8.0338087]
[1754127390621,1.11468,3492.0,3491.4,8.0338087]
[1754127390800,4.543,3492.1,3491.5,0.4986]
[1754127390801,4.54,3492.1,3491.5,0.4986]
[1754127391496,0.9714,3492.3,3491.5,0.4986]
[1754127391701,4.538,3492.2,3491.5,0.4986]
[1754127392232,1.72,3492.7,3491.5,0.4986]
[1754127392233,4.538,3492.3,3491.9,8.0338087]
[1754127392388,4.538,3492.3,3491.9,8.5324087]
[1754127393090,4.538,3492.3,3492.0,0.4986]
[1754127393289,0.4701,3493.0,3492.1,0.4986]
[1754127393495,4.536,3492.9,3492.4,8.0338087]
[1754127393795,0.89774987,3493.0,3492.4,8.0338087]
[1754127395235,0.4693,3492.9,3492.0,4.536]
[1754127395405,31.72,3492.7,3491.5,3.0]
[1754127395588,4.535,3492.6,3491.5,4.55668087]
[1754127395790,3.9394,3492.5,3491.4,12.5688087]
[1754127395989,0.1432,3492.2,3491.7,0.1432]
[1754127396409,0.9394,3492.1,3491.7,0.1432]
[1754127396604,0.4693,3492.0,3491.7,0.1432]
[1754127397322,0.4693,3492.0,3491.4,12.5688087]
[1754127397323,0.74956,3491.9,3491.5,0.1432]
[1754127397643,0.1432,3492.0,3491.5,0.1432]
[1754127397796,4.532,3492.3,3491.9,8.0338087]
[1754127397998,4.532,3492.3,3492.1,0.1432]
[1754127399141,0.001,3492.4,3492.1,0.1432]
[1754127399319,0.001,3492.4,3492.2,1.0769]
[1754127399629,0.001,3492.4,3492.2,0.6418]
[1754127400197,0.001,3492.4,3492.3,0.4986]
[1754127400427,0.001,3492.4,3491.9,8.0338087]
[1754127400631,0.001,3492.3,3492.1,0.1432]
[1754127401715,36.7203,3492.2,3489.1,0.13432656]
[1754127401918,1.72,3491.6,3490.3,0.5006]
[1754127402113,1.72,3491.4,3490.3,0.5006]
[1754127402950,1.72,3491.2,3490.3,0.5006]
[1754127403244,1.72,3491.2,3490.3,5.0466]
[1754127403545,1.72,3491.2,3490.3,0.5006]
[1754127404404,1.72,3491.0,3490.3,1.35345087]
[1754127404611,1.72,3491.0,3490.3,0.002]
[1754127405502,1.72,3491.3,3490.7,8.0338087]
[1754127405706,1.72,3491.5,3490.7,8.9675087]
[1754127406308,0.4701,3491.9,3491.2,8.0338087]
[1754127406514,4.542,3491.6,3490.8,0.9337]
[1754127406712,4.542,3491.6,3490.8,1.52478]
[1754127407515,7.4733,3492.2,3491.2,8.0338087]
[1754127407704,1.72,3492.1,3491.2,8.0338087]
[1754127407911,6.26,3492.0,3491.2,8.0338087]
[1754127408914,6.259,3492.0,3491.2,8.0338087]
[1754127409652,4.539,3492.0,3491.7,8.0338087]
[1754127409835,7.004,3492.2,3491.8,0.4986]
[1754127410003,7.004,3492.2,3491.9,0.4986]
[1754127410209,0.001,3492.3,3491.9,0.4986]
[1754127410512,0.001,3492.3,3492.0,0.9337]
[1754127410935,0.001,3492.3,3491.7,8.0338087]
[1754127411422,0.001,3492.3,3491.7,9.38425957]
[1754127411820,0.457,3492.3,3490.9,0.4522]
[1754127412129,0.457,3492.3,3491.4,8.0338087]
[1754127412469,0.457,3492.3,3491.0,0.4317]
[1754127412470,0.001,3492.3,3492.2,0.1432]
[1754127412809,0.001,3492.3,3492.2,1.0271]
[1754127413610,0.001,3492.3,3492.2,1.76549786]
[1754127415353,0.001,3492.3,3492.2,0.5954]
[1754127415555,0.001,3492.3,3492.2,0.1432]
[1754127416309,0.001,3492.3,3492.2,4.6822]
[1754127417431,0.001,3492.3,3492.2,0.1432]
[1754127417657,0.913,3492.3,3492.2,0.1432]
[1754127418311,0.913,3492.3,3492.1,4.539]
[1754127418517,0.912,3492.2,3492.1,4.6822]
[1754127419063,0.912,3492.2,3492.1,4.539]
[1754127419561,0.456,3492.2,3492.0,0.1432]
[1754127420252,0.456,3492.1,3492.0,0.1432]
[1754127420451,0.912,3492.1,3491.5,3.0]
[1754127420660,0.912,3492.1,3491.8,0.1432]
[1754127420854,0.912,3492.0,3491.8,0.1432]
[1754127421056,0.912,3491.9,3490.9,8.4860087]
[1754127421261,0.912,3491.9,3491.5,0.1432]
[1754127421415,0.456,3492.2,3491.5,0.1432]
[1754127421620,0.001,3492.3,3492.0,0.1432]
[1754127421821,0.001,3492.3,3492.1,0.8839]
[1754127422052,0.001,3492.3,3492.2,0.1432]
[1754127422356,0.457,3492.3,3492.2,0.1432]
[1754127422542,0.001,3492.3,3492.2,0.1432]
[1754127422744,0.001,3492.3,3492.2,0.4522]
[1754127423051,0.001,3492.3,3492.2,0.1432]
[1754127424988,0.001,3492.3,3492.2,5.5591]
[1754127425286,0.001,3492.3,3492.2,6.91839087]
[1754127425992,0.001,3492.3,3492.2,0.1432]
[1754127426161,0.001,3492.3,3492.2,0.5954]
[1754127426577,0.001,3492.3,3492.2,1.0271]
[1754127427408,0.001,3492.3,3492.2,0.1432]
[1754127427610,0.001,3492.3,3492.2,1.0271]
[1754127427918,0.001,3492.3,3492.2,6.03149087]
[1754127428207,0.001,3492.3,3492.2,4.6722]
[1754127429425,0.001,3492.3,3492.2,0.1432]
[1754127429617,0.913,3492.3,3492.2,0.1432]
[1754127429909,0.913,3492.3,3491.6,4.533]
[1754127430411,0.913,3492.3,3491.8,0.1432]
[1754127431167,0.457,3492.3,3491.8,0.1432]
[1754127431510,0.456,3492.2,3491.8,0.17183852]
[1754127431870,0.001,3492.3,3491.8,0.17183852]
[1754127432324,0.001,3492.3,3491.8,0.1432]
[1754127432499,0.912,3492.2,3491.8,0.1432]
[1754127432816,0.912,3492.1,3491.8,0.1432]
[1754127433030,0.912,3492.0,3491.8,0.1432]
[1754127433229,0.912,3491.9,3491.8,0.1432]
[1754127434005,0.912,3491.9,3491.5,4.529]
[1754127434323,1.722,3492.2,3491.8,0.1432]
[1754127434829,0.912,3492.1,3491.8,0.1432]
[1754127435190,1.722,3492.2,3491.8,0.1432]
[1754127435415,0.912,3492.0,3491.8,0.1432]
[1754127435787,0.912,3491.9,3491.5,4.529]
[1754127436206,0.912,3491.9,3491.3,3.0]
[1754127436627,0.456,3491.9,3491.5,0.1432]
[1754127437125,0.912,3491.9,3491.5,0.1432]
[1754127437324,0.001,3492.3,3491.6,0.4522]
[1754127437486,0.1442,3492.3,3491.8,0.1432]
[1754127437682,0.912,3492.2,3491.8,0.1432]
[1754127437886,0.912,3492.1,3491.8,0.1432]
[1754127438706,0.456,3492.0,3491.8,0.1432]
[1754127440907,0.1442,3492.3,3491.8,0.1432]
[1754127441151,0.1442,3492.3,3491.2,8.0338087]
[1754127441152,0.456,3491.9,3491.2,8.0338087]
[1754127441458,0.456,3491.8,3491.4,0.1432]
[1754127441756,0.456,3491.8,3491.3,4.52]
[1754127441757,0.456,3491.9,3491.6,0.1432]
[1754127442047,0.001,3492.3,3491.7,0.1432]
[1754127442274,0.947,3492.2,3491.7,0.1432]
[1754127442419,0.001,3492.3,3491.7,0.1432]
[1754127442750,0.947,3492.2,3491.7,0.1432]
[1754127442949,0.1442,3492.3,3491.7,0.1432]
[1754127443157,0.1442,3492.3,3491.7,0.5964]
[1754127443535,0.001,3492.3,3491.7,0.4532]
[1754127443861,0.001,3492.3,3491.8,8.0338087]
[1754127444066,0.001,3492.3,3492.2,0.1432]
[1754127444568,0.001,3492.3,3491.4,4.515]
[1754127444724,1.0912,3492.3,3491.8,0.1432]
[1754127444924,0.947,3492.2,3491.2,8.0358087]
[1754127445124,0.1432,3492.0,3491.5,0.1432]
[1754127445324,0.947,3491.9,3491.5,0.1432]
[1754127445632,0.947,3491.8,3491.5,0.1432]
[1754127445836,0.4947,3492.1,3491.2,8.4893087]
[1754127446022,0.4947,3492.1,3491.7,0.1432]
[1754127446264,0.1432,3492.2,3491.7,0.1432]
[1754127446567,0.947,3492.1,3491.7,0.1432]
[1754127446863,0.4947,3492.0,3491.7,0.1432]
[1754127447667,0.001,3492.3,3491.9,0.1432]
[1754127449079,0.001,3492.3,3492.2,0.1432]
[1754127449553,0.948,3492.3,3490.0,6.884]
[1754127449757,1.722,3492.1,3490.5,8.4873087]
[1754127450073,1.722,3491.9,3490.5,8.4873087]
[1754127450241,1.722,3491.7,3490.5,8.0338087]
[1754127450442,1.722,3491.7,3490.6,3.0]
[1754127450867,2.669,3491.6,3490.6,3.0]
[1754127451470,0.947,3491.5,3490.6,3.0]
[1754127451839,0.4523,3491.4,3490.6,3.0]
[1754127452047,0.947,3491.4,3490.6,3.0]
[1754127452255,0.947,3491.3,3490.6,3.0]
[1754127453338,2.669,3491.3,3490.5,8.0338087]
[1754127453537,2.9359,3491.3,3490.5,8.0338087]
[1754127454190,0.6245,3491.8,3490.5,8.0338087]
[1754127454351,6.241,3491.6,3491.0,8.0338087]
[1754127454882,1.722,3491.6,3491.0,8.0338087]
[1754127455069,0.4947,3491.5,3491.0,8.0338087]
[1754127455270,0.947,3491.5,3491.0,8.0338087]
[1754127455445,0.4947,3491.4,3490.8,0.4532]
[1754127455960,2.669,3491.3,3490.5,8.0338087]
[1754127456349,0.947,3491.3,3490.5,8.0338087]
[1754127456844,0.4947,3491.3,3490.6,0.4532]
[1754127457049,4.516,3491.5,3490.6,0.4532]
[1754127457281,4.516,3491.5,3490.5,8.4873087]
[1754127457282,0.4947,3491.6,3490.9,0.4532]
[1754127457721,0.4947,3492.2,3491.0,8.0338087]
[1754127458027,0.4533,3492.3,3491.0,8.0338087]
[1754127458028,5.0107,3492.0,3491.3,0.4532]
[1754127458720,5.0097,3492.0,3491.3,0.4532]
[1754127459418,5.0097,3492.0,3491.2,0.002]
[1754127459578,5.1529,3492.0,3491.5,0.1432]
[1754127459778,0.4947,3491.9,3491.5,0.1432]
[1754127460217,0.4947,3491.8,3491.5,0.1432]
[1754127460522,0.947,3491.8,3491.5,0.1432]
[1754127460817,0.56052,3491.9,3491.2,0.002]
[1754127460818,0.947,3491.7,3491.2,0.002]
[1754127461116,0.947,3491.7,3491.4,0.1432]
[1754127461322,0.947,3491.6,3491.4,0.1432]
[1754127461485,0.4523,3491.6,3491.4,0.1432]
[1754127461684,0.4947,3491.5,3491.4,0.1432]
[1754127462185,0.947,3491.5,3491.2,0.002]
[1754127462902,7.951,3491.5,3491.2,0.002]
[1754127463105,7.004,3491.5,3491.2,0.4552]
[1754127463311,7.004,3491.5,3491.4,0.1432]
[1754127464322,4.509,3491.9,3491.4,0.1432]
[1754127464819,4.509,3491.9,3491.6,0.1432]
[1754127465207,0.947,3491.8,3491.2,0.002]
[1754127465380,0.1432,3491.6,3491.2,0.002]
[1754127465786,0.6379,3492.2,3491.5,8.1770087]
[1754127466017,4.516,3492.1,3491.5,8.1770087]
[1754127466331,0.1432,3492.2,3491.5,8.0338087]
[1754127466494,0.1432,3492.2,3491.6,1.37589103]
[1754127466678,0.1432,3492.2,3491.7,0.9067]
[1754127466882,7.005,3492.3,3491.7,0.9067]
[1754127467119,0.001,3492.3,3492.1,0.1432]
[1754127468616,0.947,3492.2,3491.8,0.1432]
[1754127468923,0.947,3492.1,3491.8,0.1432]
[1754127469124,0.4947,3492.1,3491.8,0.1432]
[1754127469426,0.001,3492.3,3492.0,0.1432]
[1754127469621,0.001,3492.3,3492.1,0.4532]
[1754127469923,0.001,3492.3,3492.2,0.1432]
[1754127472236,1.3659,3492.3,3491.2,0.4987]
[1754127472527,0.9135,3492.2,3491.8,0.1432]
[1754127472730,0.1442,3492.3,3491.9,0.4967]
[1754127472912,0.1442,3492.3,3492.0,8.9745087]
[1754127473091,0.001,3492.3,3492.2,0.1432]
[1754127473292,0.001,3492.3,3492.2,1.11253524]
[1754127473505,0.001,3492.3,3492.2,1.0839]
[1754127475837,0.001,3492.3,3492.2,0.6399]
[1754127476860,0.001,3492.3,3492.2,1.0839]
[1754127477014,0.001,3492.3,3492.2,2.53774796]
[1754127479331,0.001,3492.3,3492.2,2.09374796]
[1754127480562,0.001,3492.3,3492.2,1.59704796]
[1754127481841,0.001,3492.3,3492.2,0.1432]
[1754127481842,0.9145,3492.3,3492.2,0.1432]
[1754127482344,0.001,3492.3,3492.2,8.1770087]
[1754127482668,0.001,3492.3,3492.2,8.9745087]
[1754127484042,0.001,3492.3,3492.1,4.506]
[1754127486538,0.001,3492.3,3491.8,3.0]
[1754127486734,0.4801,3492.3,3492.0,4.501]
[1754127487148,0.001,3492.3,3492.0,4.501]
[1754127487343,0.4801,3492.3,3492.0,4.501]
[1754127487580,0.001,3492.3,3492.2,8.0338087]
[1754127488079,0.001,3492.3,3492.2,8.9745087]
[1754127488247,0.001,3492.3,3492.2,10.43239766]
[1754127491290,0.001,3492.3,3492.2,14.92939766]
[1754127492469,0.001,3492.3,3492.2,15.07259766]
[1754127492869,0.001,3492.3,3492.2,12.55653522]
[1754127493080,0.001,3492.3,3492.2,12.11253522]
[1754127493284,0.001,3492.3,3492.2,10.15794626]
[1754127493952,0.4801,3492.3,3492.2,10.15794626]
[1754127494752,0.001,3492.3,3492.2,4.6402]
[1754127495690,0.001,3492.3,3492.2,5.5809]
[1754127495894,0.001,3492.7,3492.5,8.04074999]
[1754127496102,0.001,3492.7,3492.6,4.497]
[1754127496401,0.001,3492.7,3492.6,5.5809]
[1754127496602,0.001,3492.7,3492.6,5.0842]
[1754127496748,0.001,3492.7,3492.6,6.893395]
[1754127497154,0.001,3492.7,3492.6,9.893395]
[1754127500718,0.4791,3493.6,3492.7,3.0]
[1754127500887,0.4791,3493.8,3493.2,8.04074999]
[1754127501087,0.4791,3493.8,3493.5,0.1432]
[1754127501689,0.4638,3494.3,3493.5,5.813665]
[1754127501874,0.4638,3494.2,3493.6,0.1432]
[1754127502099,0.4638,3494.2,3493.6,0.5947]
[1754127502683,0.4638,3494.2,3493.6,0.1432]
[1754127502880,0.21490512,3494.7,3493.6,0.1432]
[1754127502881,0.918,3493.7,3493.6,0.1432]
[1754127503619,0.918,3493.7,3493.4,0.1432]
[1754127503819,0.001,3493.7,3493.4,0.1432]
[1754127504021,0.001,3493.7,3493.3,0.1432]
[1754127504022,0.917,3493.6,3493.3,0.1432]
[1754127504207,0.917,3493.5,3492.2,1.00959]
[1754127504378,0.1432,3493.5,3493.0,0.1432]
[1754127504586,0.917,3493.4,3493.0,0.1432]
[1754127504920,0.917,3493.3,3493.0,0.1432]
[1754127505128,0.917,3493.2,3493.0,0.1432]
[1754127505284,0.1432,3493.5,3493.0,0.1432]
[1754127505679,0.917,3493.4,3493.2,0.1432]
[1754127505922,0.4648,3493.7,3493.4,0.1432]
[1754127506137,0.001,3493.7,3493.3,0.1432]
[1754127506292,0.001,3493.7,3493.3,0.02862622]
[1754127506629,0.001,3493.7,3493.6,0.1432]
[1754127507009,0.918,3493.7,3493.6,0.1432]
[1754127507194,0.918,3493.7,3493.1,4.495]
[1754127507394,0.917,3493.6,3492.9,4.495]
[1754127507694,0.001,3493.7,3493.2,0.1432]
[1754127507695,0.917,3493.5,3493.2,0.1432]
[1754127507896,0.917,3493.4,3493.2,0.1432]
[1754127508131,0.917,3493.3,3493.2,0.1432]
[1754127508303,0.917,3493.3,3492.8,4.495]
[1754127508626,0.917,3493.2,3492.9,0.1432]
[1754127508832,0.1432,3493.5,3492.9,0.1432]
[1754127509035,0.917,3493.1,3492.9,0.1432]
[1754127509237,0.1432,3493.5,3492.9,0.1432]
[1754127509435,0.917,3493.0,3492.9,0.1432]
[1754127510835,0.001,3493.7,3492.9,0.4515]
[1754127511135,0.001,3493.7,3493.4,3.0]
[1754127511306,0.001,3493.7,3493.4,7.495]
[1754127511507,0.001,3493.7,3493.6,0.1432]
[1754127512256,0.4648,3493.7,3493.6,0.1432]
[1754127512412,0.918,3493.7,3493.3,0.1432]
[1754127512603,0.001,3493.7,3493.3,0.1432]
[1754127512805,0.917,3493.6,3493.3,0.1432]
[1754127513034,0.917,3493.5,3492.8,4.495]
[1754127513335,0.4638,3493.4,3493.1,0.1432]
[1754127513529,0.917,3493.4,3493.1,0.1432]
[1754127513712,0.917,3493.3,3493.1,0.1432]
[1754127513915,0.4638,3493.3,3493.1,0.1432]
[1754127514344,0.001,3493.7,3492.8,4.9477]
[1754127514501,0.4532,3493.6,3492.9,0.49477]
[1754127514701,0.4638,3493.5,3493.4,0.1432]
[1754127515135,0.917,3493.5,3493.4,0.1432]
[1754127515643,0.001,3493.7,3493.4,0.1432]
[1754127516000,0.001,3493.7,3493.6,0.1432]
[1754127516418,0.001,3493.7,3493.6,0.961595]
[1754127516613,0.001,3493.7,3493.6,1.413095]
[1754127516815,0.001,3493.7,3493.6,4.89441876]
[1754127517111,0.001,3493.7,3493.6,9.360795]
[1754127517656,0.001,3494.1,3493.6,9.360795]
[1754127517858,0.001,3494.1,3494.0,8.04074999]
[1754127518062,0.001,3494.1,3494.0,12.67894999]
[1754127518226,0.001,3494.1,3494.0,13.58314999]
[1754127520470,0.001,3494.1,3494.0,13.13044999]
[1754127520960,0.001,3494.1,3494.0,12.67894999]
[1754127521183,0.001,3494.1,3494.0,6.10873454]
[1754127521348,0.001,3494.1,3494.0,4.6382]
[1754127521877,0.001,3494.1,3494.0,0.1432]
[1754127522031,0.001,3494.1,3493.8,0.4638]
[1754127522032,0.918,3494.1,3493.8,0.4638]
[1754127522237,0.917,3494.0,3493.5,4.495]
[1754127522466,0.917,3493.9,3493.6,3.0]
[1754127522777,0.001,3494.1,3493.6,3.0]
[1754127523178,0.917,3494.0,3493.6,3.0]
[1754127523472,0.917,3493.9,3492.9,3.0]
[1754127523638,0.917,3493.8,3493.0,5.643225]
[1754127523838,0.001,3494.1,3493.0,5.643225]
[1754127524043,0.917,3493.7,3493.1,3.0]
[1754127524638,0.4638,3494.0,3493.1,3.0]
[1754127524843,0.4638,3494.0,3493.2,0.5053425]
[1754127525072,0.4638,3494.0,3493.3,3.0]
[1754127525279,0.4532,3493.9,3493.3,3.0]
[1754127525782,0.4638,3493.8,3493.3,3.0]
[1754127525979,0.4638,3493.7,3493.3,3.0]
[1754127526141,0.4648,3494.1,3493.3,3.0]
[1754127526340,0.4638,3494.0,3493.3,3.0]
[1754127526580,0.4638,3494.0,3493.4,0.79455]
[1754127526789,0.4638,3494.0,3493.3,3.4515]
[1754127527582,0.4532,3493.9,3493.3,3.0]
[1754127527938,0.4638,3493.8,3493.3,3.0]